fUST/lending_fUST_20251017
["ID","MTS","AMOUNT","RATE_DAILY","PERIOD"]
[391571522,1760667047013,-1731.58399412,0.00041444,7]
[391571523,1760667095212,251.9495029,0.00027507,25]
[391571525,1760667197066,172.3613953,0.00029041,120]
[391571527,1760667258535,281.354012,0.00013699,2]
[391571528,1760667258766,281.354012,0.00020187,2]
[391571529,1760667258998,281.354012,0.00026676,2]
[391571531,1760667459026,8484.95640119,0.00027,2]
[391571533,1760667613688,100163.0,0.00029,120]
[391571534,1760667625692,1440.35,0.00026653,2]
[391571535,1760667647766,160.0,0.00029041,2]
[391571537,1760667707671,1422.02,0.00026698,2]
[391571581,1760667904848,1174.79,0.00029041,2]
[391571598,1760668027098,-281.354012,0.00033165,2]
[391571599,1760668027118,-160.0,0.00033257,2]
[391571600,1760668027139,-400.0,0.00033294,3]
[391571601,1760668027159,-295.0,0.00033294,3]
[391571602,1760668027179,-400.0,0.00033294,2]
[391571603,1760668027198,-250.0,0.00033692,2]
[391571604,1760668027218,-194.782021,0.00033923,120]
[391571605,1760668027239,-451.0,0.00035761,2]
[391571606,1760668027260,-1427.23,0.00036036,2]
[391571607,1760668027279,-442.3199965,0.00036294,2]
[391571608,1760668027299,-170.25762707,0.00036346,45]
[391571609,1760668027318,-9613.51382908,0.00036346,2]
[391571675,1760668045654,300.0,0.00029,2]
[391571676,1760668047755,502.97158788,0.00028693,7]
[391571686,1760668057258,300.0,0.00029,2]
[391571699,1760668067662,300.0,0.00029,2]
[391571712,1760668078913,300.0,0.00029,2]
[391571738,1760668112777,153.70559495,0.00025,120]
[391571739,1760668114200,171.73311726,0.00028,120]
[391571741,1760668117110,1361.50892919,0.00028,3]
[391571742,1760668117996,6610.09077072,0.00027,2]
[391571743,1760668118021,217.90922928,0.00027,2]
[391571750,1760668165515,490.6942065,0.00028658,2]
[391571761,1760668232763,-157.12452363,0.000295,120]
[391571762,1760668232773,-882.10892432,0.0002956,2]
[391571763,1760668232784,-4633.71838398,0.0002956,2]
[391571854,1760668238601,-60673.32686393,0.0002956,2]
[391571855,1760668238611,-336.2637941,0.00029573,5]
[391571856,1760668238620,-5928.62460561,0.0003,2]
[391571857,1760668238630,-582.16891392,0.000301,5]
[391571858,1760668238640,-1519.69,0.00030112,2]
[391571859,1760668238649,-451.77198298,0.00030136,2]
[391571860,1760668238661,-161.71,0.0003055,15]
[391571861,1760668238671,-161.71,0.0003065,15]
[391571862,1760668238681,-161.71,0.0003075,15]
[391571863,1760668238690,-161.71,0.0003085,15]
[391571864,1760668238702,-161.71,0.0003095,15]
[391571866,1760668238712,-161.71,0.0003105,15]
[391571867,1760668238722,-161.71,0.0003115,15]
[391571868,1760668238731,-161.71,0.0003125,15]
[391571869,1760668238740,-161.71,0.0003135,15]
[391571870,1760668238749,-161.71,0.0003145,15]
[391571871,1760668238759,-161.71,0.0003155,15]
[391571872,1760668238769,-161.71,0.0003165,15]
[391571873,1760668238780,-161.71,0.0003175,15]
[391571874,1760668238790,-161.71,0.0003185,15]
[391571875,1760668238801,-161.71,0.0003195,15]
[391571876,1760668238811,-161.71,0.0003205,15]
[391571877,1760668238821,-161.71,0.0003215,15]
[391571878,1760668238830,-161.71,0.0003225,15]
[391571879,1760668238840,-161.71,0.0003235,15]
[391571880,1760668238851,-161.71,0.0003245,15]
[391571881,1760668238860,-161.71,0.0003255,15]
[391571882,1760668238871,-161.71,0.0003265,15]
[391571883,1760668238881,-161.71,0.0003275,15]
[391571884,1760668238891,-3039.38,0.00032849,2]
[391571885,1760668238900,-161.71,0.0003285,15]
[391571886,1760668238912,-161.71,0.0003295,60]
[391571887,1760668238922,-161.71,0.0003305,60]
[391571888,1760668238933,-161.71,0.0003315,60]
[391571889,1760668238943,-171.0171326,0.00033189,2]
[391571890,1760668238953,-2945.32361102,0.00033195,2]
[391571891,1760668238964,-161.71,0.0003325,60]
[391571892,1760668238974,-628.0,0.00033289,120]
[391571893,1760668238984,-2754.0,0.00033289,120]
[391571894,1760668238994,-176.47134,0.00033289,60]
[391571895,1760668239005,-370312.53985006,0.00033289,20]
[391571896,1760668239015,-10076.56114314,0.00033289,120]
[391571897,1760668239025,-256.65331007,0.00033289,120]
[391571898,1760668239035,-576.72,0.000333,2]
[391571899,1760668239044,-692.45,0.000333,14]
[391571900,1760668239054,-161.71,0.0003335,60]
[391571901,1760668239065,-161.71,0.0003345,60]
[391571902,1760668239075,-161.71,0.0003355,60]
[391571903,1760668239086,-161.71,0.0003365,60]
[391571904,1760668239096,-161.71,0.0003375,60]
[391571905,1760668239106,-161.71,0.0003385,60]
[391571906,1760668239117,-161.71,0.0003395,60]
[391571907,1760668239127,-161.71,0.0003405,60]
[391571908,1760668239136,-161.71,0.0003415,60]
[391571909,1760668239147,-161.71,0.0003425,60]
[391571910,1760668239158,-161.71,0.0003435,60]
[391571911,1760668239168,-161.71,0.0003445,60]
[391571912,1760668239179,-161.71,0.0003455,60]
[391571913,1760668239189,-161.71,0.0003465,60]
[391571914,1760668239199,-161.71,0.0003475,60]
[391571915,1760668239209,-161.71,0.0003485,60]
[391571916,1760668239219,-161.71,0.0003495,60]
[391571917,1760668239229,-161.71,0.0003505,60]
[391571918,1760668239238,-692.45,0.000351,14]
[391571919,1760668239248,-161.71,0.0003515,60]
[391571920,1760668239258,-576.72,0.000352,2]
[391571921,1760668239268,-171.0171326,0.00035228,2]
[391571922,1760668239278,-161.71,0.0003525,60]
[391571923,1760668239287,-250.0,0.00035287,2]
[391571924,1760668239297,-161.71,0.0003535,60]
[391571925,1760668239307,-161.71,0.0003545,60]
[391571926,1760668239316,-161.71,0.0003555,60]
[391571927,1760668239326,-4559.08,0.00035587,2]
[391571928,1760668239335,-161.71,0.0003565,60]
[391571929,1760668239344,-161.71,0.0003575,60]
[391571930,1760668239354,-161.71,0.0003585,60]
[391571931,1760668239363,-205.54386676,0.00035925,2]
[391571932,1760668239372,-161.71,0.0003595,60]
[391571933,1760668239381,-155.279924,0.00036033,60]
[391571934,1760668239392,-161.71,0.0003605,60]
[391571935,1760668239404,-161.71,0.0003615,60]
[391571936,1760668239413,-302.45563732,0.00036164,38]
[391571937,1760668239422,-161.71,0.0003625,60]
[391571938,1760668239433,-359.97072119,0.00036341,2]
[391571939,1760668239442,-161.71,0.0003635,60]
[391571940,1760668239452,-161.71,0.0003645,60]
[391571941,1760668239462,-323.90460001,0.00036499,2]
[391571942,1760668239474,-161.71,0.0003655,60]
[391571943,1760668239483,-161.71,0.0003665,60]
[391571944,1760668239493,-161.71,0.0003675,60]
[391571945,1760668239502,-161.71,0.0003685,60]
[391571946,1760668239512,-692.45,0.000369,14]
[391571947,1760668239521,-161.71,0.0003695,60]
[391571948,1760668239530,-161.71,0.0003705,60]
[391571949,1760668239539,-576.72,0.000371,2]
[391571950,1760668239548,-161.71,0.0003715,60]
[391571951,1760668239557,-161.71,0.0003725,60]
[391571952,1760668239567,-1562.17901184,0.0003726,120]
[391571953,1760668239576,-171.0171326,0.00037266,2]
[391571954,1760668239586,-2945.323611,0.0003727,2]
[391571955,1760668239595,-161.71,0.0003735,60]
[391571956,1760668239604,-161.71,0.0003745,60]
[391571957,1760668239614,-161.71,0.0003755,60]
[391571958,1760668239623,-161.71,0.0003765,60]
[391571959,1760668239632,-161.71,0.0003775,60]
[391571960,1760668239646,-161.71,0.0003785,60]
[391571961,1760668239656,-161.71,0.0003795,60]
[391571962,1760668239666,-161.71,0.0003805,60]
[391571963,1760668239676,-161.71,0.0003815,60]
[391571964,1760668239685,-369.97896018,0.0003822,2]
[391571965,1760668239694,-161.71,0.0003825,60]
[391571966,1760668239703,-6078.77,0.00038324,2]
[391571967,1760668239713,-161.71,0.0003835,60]
[391571968,1760668239722,-155.279924,0.00038401,60]
[391571969,1760668239732,-161.71,0.0003845,120]
[391571970,1760668239742,-161.71,0.0003855,120]
[391571971,1760668239751,-324.2115202,0.00038561,2]
[391571972,1760668239760,-151.104109,0.00038617,60]
[391571973,1760668239769,-161.71,0.0003865,120]
[391571974,1760668239779,-692.45,0.000387,14]
[391571975,1760668239788,-161.71,0.0003875,120]
[391571976,1760668239797,-155.279924,0.00038793,20]
[391571977,1760668239807,-161.71,0.0003885,120]
[391571978,1760668239817,-161.71,0.0003895,120]
[391571979,1760668239826,-576.72,0.00039,2]
[391571980,1760668239836,-20021.5100811,0.00039,40]
[391571981,1760668239845,-161.71,0.0003905,120]
[391571982,1760668239855,-161.71,0.0003915,120]
[391571983,1760668239864,-4197.0,0.00039228,2]
[391571984,1760668239875,-161.71,0.0003925,120]
[391571985,1760668239884,-171.0171326,0.00039305,2]
[391571986,1760668239894,-161.71,0.0003935,120]
[391571987,1760668239904,-161.71,0.0003945,120]
[391571988,1760668239913,-427.0,0.00039465,2]
[391571989,1760668239923,-1562.17901184,0.00039495,120]
[391571990,1760668239932,-161.71,0.0003955,120]
[391571991,1760668239941,-155.279924,0.00039602,5]
[391571992,1760668239951,-427.0,0.00039609,7]
[391571993,1760668239961,-161.71,0.0003965,120]
[391571994,1760668239970,-281.354012,0.00039654,2]
[391571995,1760668239985,-386.49617092,0.00039654,2]
[391571996,1760668240001,-161.71,0.0003975,120]
[391571997,1760668240011,-161.71,0.0003985,120]
[391571998,1760668240020,-161.71,0.0003995,120]
[391571999,1760668240030,-150.0,0.00039973,5]
[391572000,1760668240040,-5000.0,0.0003999,30]
[391572001,1760668240050,-981.18226283,0.0004,120]
[391572002,1760668240060,-880256.80172904,0.0004,120]
[391572003,1760668240070,-169.8656013,0.0004,60]
[391572004,1760668240079,-161.71,0.0004005,120]
[391572005,1760668240089,-161.71,0.0004015,120]
[391572006,1760668240098,-161.71,0.0004025,120]
[391572007,1760668240107,-161.71,0.0004035,120]
[391572008,1760668240117,-522.0,0.00040382,2]
[391572009,1760668240127,-161.91596178,0.0004045,120]
[391572011,1760668240136,-657.74037365,0.00040515,2]
[391572013,1760668240146,-250.0,0.00040521,5]
[391572015,1760668240155,-426.0,0.00040581,120]
[391572016,1760668240164,-114624.70623474,0.0004059,7]
[391572017,1760668240174,-3078.2541113,0.00040637,2]
[391572018,1760668240183,-522.0,0.00040662,120]
[391572020,1760668240193,-155.279924,0.0004077,60]
[391572021,1760668240202,-5146.8914338,0.0004099,30]
[391572022,1760668240212,-426.0,0.0004102,7]
[391572023,1760668240221,-7598.46,0.00041062,2]
[391572024,1760668240231,-433.46249405,0.00041068,5]
[391572025,1760668240244,-17.21282396,0.00041068,5]
[391572026,1760668240255,-262.91219201,0.00041096,2]
[391572027,1760668240264,-500.0,0.00041161,120]
[391572028,1760668240274,-522.0,0.00041162,2]
[391572029,1760668240283,-4333.44358,0.000412,120]
[391572030,1760668240292,-516.15561652,0.000412,120]
[391572597,1760668246755,-455.590158,0.000412,120]
[391573079,1760668257406,1008.65132469,0.00029041,2]
[391573081,1760668588305,10000.0,0.00029041,2]
[391573082,1760668596763,0.01,8e-07,2]
[391573083,1760668596786,156.99,8e-07,2]
[391573084,1760668605264,3100.0,0.00029041,2]
[391573085,1760668731230,1334.73,0.00026932,2]
[391573086,1760668807468,1317.74,0.00026925,2]
[391573088,1760668886797,1300.97,0.00026577,2]
[391573089,1760668887227,2601.94,0.00028993,2]
[391573090,1760668891135,500.0,0.00029,14]
[391573091,1760668966238,1251.3,0.00026573,2]
[391573092,1760668966627,2502.59,0.00028988,2]
[391573093,1760669057669,150.0,0.00025205,2]
[391573094,1760669058121,172.5,0.00025805,2]
[391573095,1760669058499,195.0,0.00026405,2]
[391573096,1760669058872,217.5,0.00027005,2]
[391573097,1760669059284,240.0,0.00027605,2]
[391573098,1760669059682,262.5,0.00028205,2]
[391573099,1760669060089,285.0,0.00028805,2]
[391573102,1760669202905,151.30210609,0.00028983,2]
[391573103,1760669229137,-1203.52,0.00029408,2]
[391573104,1760669229160,-549.74,0.0003,30]
[391573105,1760669229181,-152.16216906,0.00030006,2]
[391573106,1760669229201,-1000.0,0.00030106,30]
[391573107,1760669229222,-185.594741,0.00030423,2]
[391573108,1760669229243,-153.53,0.00030523,15]
[391573109,1760669229264,-161.75,0.00030548,15]
[391573110,1760669229285,-153.53,0.00030623,15]
[391573111,1760669229305,-161.75,0.00030648,15]
[391573112,1760669229325,-153.53,0.00030723,15]
[391573113,1760669229344,-161.75,0.00030748,15]
[391573114,1760669229362,-2668.27196968,0.00030748,2]
[391573115,1760669234087,-370.05254707,0.00030748,2]
[391573117,1760669254429,-19528.77258337,0.00030748,2]
[391573118,1760669254450,-153.53,0.00030823,15]
[391573119,1760669254471,-161.75,0.00030848,15]
[391573120,1760669254493,-153.53,0.00030923,15]
[391573121,1760669254512,-161.75596178,0.00030948,15]
[391573122,1760669254532,-1200.0,0.00030992,2]
[391573123,1760669254551,-311.0363559,0.00030993,2]
[391573124,1760669254573,-153.53,0.00031023,15]
[391573125,1760669254593,-400.0,0.0003112,2]
[391573126,1760669254613,-400.0,0.00031122,3]
[391573127,1760669254634,-400.0,0.00031122,3]
[391573128,1760669254653,-301.0,0.00031122,3]
[391573129,1760669254672,-400.0,0.00031122,3]
[391573130,1760669254694,-153.53,0.00031123,15]
[391573131,1760669254713,-153.53,0.00031223,15]
[391573132,1760669254733,-153.53,0.00031323,15]
[391573133,1760669254757,-153.53,0.00031423,15]
[391573134,1760669254778,-153.53,0.00031523,15]
[391573135,1760669254797,-153.53,0.00031623,15]
[391573136,1760669254816,-152.16216905,0.00031705,2]
[391573137,1760669254836,-153.53,0.00031723,15]
[391573138,1760669254856,-153.53,0.00031823,15]
[391573139,1760669254876,-153.53,0.00031923,15]
[391573140,1760669254897,-153.62,0.00032023,15]
[391573141,1760669254918,-2407.04,0.00032081,2]
[391573142,1760669254939,-402.69031254,0.00033293,2]
[391573143,1760669254958,-152.16216905,0.00033404,2]
[391573144,1760669254977,-8974.0,0.00033407,2]
[391573145,1760669254997,-255.0,0.00033502,2]
[391573146,1760669255018,-202.0,0.00033504,3]
[391573147,1760669255040,-203.0,0.00033504,3]
[391573148,1760669255062,-204.0,0.00033504,3]
[391573149,1760669255083,-156.484838,0.0003367,15]
[391573150,1760669255106,-152.481433,0.0003367,15]
[391573151,1760669255126,-250.0,0.00033692,2]
[391573152,1760669255146,-666.0,0.0003418,2]
[391573153,1760669255167,-156.484838,0.00034505,15]
[391573154,1760669255187,-152.481433,0.00034505,15]
[391573155,1760669255207,-182.881663,0.0003452,60]
[391573156,1760669255229,-3610.56,0.00034755,2]
[391573157,1760669255251,-151.0,0.0003486,2]
[391573158,1760669255271,-151.0,0.0003486,2]
[391573159,1760669255292,-156.484838,0.000352,60]
[391573160,1760669255312,-156.484838,0.0003534,15]
[391573161,1760669255332,-152.481433,0.0003534,15]
[391573162,1760669255351,-326.91907955,0.0003726,120]
[391573163,1760669255372,-4814.08,0.00037428,2]
[391573164,1760669255392,-156.484838,0.00037467,20]
[391573165,1760669255412,-152.481433,0.00037467,20]
[391573166,1760669255431,-500.0,0.00037667,30]
[391573167,1760669255451,-522.82137042,0.00037999,2]
[391573168,1760669255471,-500.0,0.00037999,15]
[391573169,1760669255491,-480.09923049,0.00037999,15]
[391573170,1760669255511,-525.62785916,0.00037999,15]
[391573171,1760669255530,-27326.42472569,0.00038,120]
[391573172,1760669288210,232.05836428,0.0002775,2]
[391573214,1760669424987,6850.0,0.00029041,120]
[391573252,1760669431873,-2659.9281873,0.00033285,120]
[391573254,1760669431884,-176.47134,0.00033285,60]
[391573256,1760669431894,-232.05836428,0.00033285,30]
[391573258,1760669431903,-232.05836428,0.00033285,30]
[391573260,1760669431914,-250.0,0.00035287,2]
[391573262,1760669431924,-743.57949596,0.00036013,2]
[391573268,1760669431979,-306.76050404,0.00036013,2]
[391573270,1760669431989,-163.45953978,0.0003726,120]
[391573272,1760669431998,-693.37460699,0.000379,2]
[391573419,1760669437779,-239.4025904,0.000379,2]
[391573420,1760669437790,-47799.77265798,0.00038,120]
[391573421,1760669437799,-160.0,0.00038,120]
[391573422,1760669437808,-307.08374872,0.00038449,2]
[391573423,1760669437818,-156.484838,0.00038467,60]
[391573424,1760669437827,-152.481433,0.00038467,60]
[391573425,1760669437839,-156.484838,0.00038723,5]
[391573426,1760669437850,-500.0,0.00039,5]
[391573427,1760669437859,-500.0,0.00039,5]
[391573428,1760669437868,-255.42743124,0.00039321,2]
[391573429,1760669437878,-459.76937622,0.00039321,2]
[391573431,1760669437889,-817.36777995,0.00039321,2]
[391573432,1760669437900,-932.77719739,0.00039486,2]
[391573433,1760669437910,-163.45953978,0.00039495,120]
[391573434,1760669437920,-515.7903307,0.00039548,5]
[391573435,1760669437930,-494.75987076,0.00039548,5]
[391573436,1760669437939,-578.0,0.00039929,2]
[391573437,1760669437949,-151.0,0.00039929,2]
[391573438,1760669437959,-151.0,0.00039984,2]
[391573439,1760669437968,-2044.2,0.00039999,15]
[391573440,1760669437978,-1000.0,0.0004,120]
[391573441,1760669437987,-1000.0,0.0004,120]
[391573442,1760669437997,-1000.0,0.0004,120]
[391573443,1760669438006,-1000.0,0.0004,120]
[391573444,1760669438015,-1000.0,0.0004,120]
[391573445,1760669438024,-1000.0,0.0004,120]
[391573446,1760669438034,-1000.0,0.0004,120]
[391573447,1760669438043,-1000.0,0.0004,120]
[391573448,1760669438053,-1000.0,0.0004,120]
[391573449,1760669438063,-1000.0,0.0004,120]
[391573450,1760669438072,-161.07604079,0.00040039,2]
[391573451,1760669438083,-3056.1332307,0.00040063,2]
[391573452,1760669438092,-575.0,0.00040321,2]
[391573453,1760669438102,-500.0,0.00040547,120]
[391573454,1760669438112,-500.0,0.00040547,120]
[391573455,1760669438122,-575.0,0.00040756,2]
[391573456,1760669438132,-350.60190282,0.00040785,2]
[391573457,1760669438141,-800.0,0.0004094,7]
[391573458,1760669438151,-800.0,0.00040957,7]
[391573459,1760669438160,-4000.0,0.00040999,30]
[391573460,1760669438170,-208.01903363,0.00040999,31]
[391573461,1760669438180,-213.21204461,0.00040999,31]
[391573462,1760669438191,-1000.0,0.00041,120]
[391573463,1760669438201,-130.22511215,0.00041,120]
[391573464,1760669438707,-869.77488785,0.00041,120]
[391573465,1760669438717,-5000.0,0.00041,120]
[391573466,1760669438728,-2976.01549015,0.00041,7]
[391573467,1760669438743,-467.96157984,0.00041,7]
[391573468,1760669438755,-532.70383983,0.00041,7]
[391573469,1760669438766,-402.51317252,0.00041,7]
[391573503,1760669439999,-102233.39968872,0.00041,7]
[391573913,1760669450059,5000.0,0.00029041,2]
[391573921,1760669458483,3199.98122635,0.00029041,2]
[391573922,1760669489670,300.0,0.00029,2]
[391573923,1760669547252,300.0,0.00029,2]
[391573933,1760669670229,1200.02877365,0.00029041,2]
[391573934,1760669670253,3721.61917839,0.00029041,2]
[391573935,1760669673147,150.0,0.00025205,2]
[391573936,1760669673533,172.5,0.00025805,2]
[391573937,1760669673918,195.0,0.00026405,2]
[391573938,1760669674290,217.5,0.00027005,2]
[391573939,1760669674680,240.0,0.00027605,2]
[391573977,1760670002994,1046.52,0.00026639,2]
[391573978,1760670083880,1033.2,0.00026618,2]
[391573979,1760670084278,2066.4,0.00029038,2]
[391573982,1760670165504,999.48,0.00027228,2]
[391573983,1760670174865,200.0,0.00029041,2]
[391573984,1760670350115,-152.86,0.00030546,15]
[391573985,1760670350137,-152.87,0.00030646,15]
[391573986,1760670350162,-1015.66,0.00031912,2]
[391573987,1760670350301,-196.74634107,0.000333,2]
[391573988,1760670350322,-886.0,0.00033486,2]
[391573989,1760670350343,-196.74634107,0.000336,2]
[391573990,1760670350365,-196.74634107,0.00034,2]
[391573991,1760670350388,-2031.32,0.00034814,2]
[391573992,1760670350408,-223.589407,0.00034841,2]
[391573993,1760670350432,-160.0,0.00036034,2]
[391573994,1760670350453,-400.0,0.00036474,2]
[391573995,1760670350473,-9667.3588796,0.00036476,2]
[391573996,1760670350494,-1000.0,0.00037,120]
[391573997,1760670350517,-3046.97,0.00037715,2]
[391573998,1760670350537,-1000.0,0.00038,120]
[391573999,1760670350561,-3842.0,0.00038273,7]
[391574000,1760670350582,-156.484838,0.00038576,60]
[391574001,1760670350602,-152.481433,0.00038576,60]
[391574002,1760670350621,-160.0,0.00038728,3]
[391574003,1760670350640,-1000.0,0.00039,120]
[391574004,1760670350660,-200.0,0.00039048,5]
[391574005,1760670350683,-1392.0,0.00039222,120]
[391574006,1760670350708,-1392.0,0.00039488,2]
[391574007,1760670350730,-316.0,0.00039709,7]
[391574008,1760670350749,-310.92573247,0.000399,2]
[391574009,1760670350768,-46124.0,0.0004,60]
[391574010,1760670350787,-1000.0,0.0004,120]
[391574011,1760670350807,-840.1085806,0.0004011,2]
[391574012,1760670350827,-834.0714113,0.0004011,2]
[391574013,1760670350845,-310.92573246,0.00040195,2]
[391574014,1760670350864,-295.93452274,0.00040195,4]
[391574015,1760670350882,-310.92573246,0.0004049,2]
[391574016,1760670350901,-500.0,0.00040573,5]
[391574017,1760670350921,-500.0,0.00040573,5]
[391574018,1760670350941,-4319.90169635,0.0004059,3]
[391574026,1760670427082,-151.95,0.0003057,15]
[391574027,1760670427105,-938.1,0.00032204,2]
[391574028,1760670427124,-167.34015194,0.00033592,2]
[391574029,1760670427145,-250.0,0.00033692,2]
[391574030,1760670427167,-1876.2,0.00035132,2]
[391574031,1760670427190,-2814.3,0.00038059,2]
[391574032,1760670427209,-981.774537,0.0004049,2]
[391574033,1760670427242,-505.2485941,0.00040573,5]
[391574034,1760670427270,-87928.83584396,0.0004059,3]
[391574035,1760670427304,-4024.27223619,0.0004059,3]
[391574036,1760670438082,-375.99241519,0.0004059,3]
[391574038,1760670445076,-38579.77239415,0.0004059,3]
[391574052,1760670567209,866.46,0.00028576,2]
[391574055,1760670611372,2574.57225021,0.00029041,2]
[391574099,1760670632057,-1732.92,0.00031174,2]
[391574101,1760670632067,-8890.829903,0.0003331,30]
[391574103,1760670632078,-30741.83054843,0.0003331,30]
[391574107,1760670632101,-559.9373241,0.0003331,30]
[391574112,1760670632138,-31725.40222447,0.0003331,30]
[391574114,1760670632147,-2599.39,0.00033772,2]
[391574115,1760670632157,-250.0,0.00035287,2]
[391574117,1760670632166,-3465.85,0.0003637,2]
[391574119,1760670632175,-550.0,0.00037,5]
[391574121,1760670632184,-4332.31,0.00038968,2]
[391574123,1760670632194,-14421.70127878,0.00039,120]
[391574358,1760670637939,-38488.63983797,0.00039,120]
[391574359,1760670637950,-365.76156237,0.00040195,4]
[391574360,1760670637959,-151.0,0.00040576,2]
[391574361,1760670637969,-151.0,0.00040576,2]
[391574362,1760670637978,-151.0,0.00040576,2]
[391574363,1760670637987,-151.30500482,0.00040576,2]
[391574364,1760670637996,-1000.0,0.00040576,2]
[391574365,1760670638005,-1000.0,0.00040576,2]
[391574366,1760670638015,-1000.0,0.00040576,2]
[391574367,1760670638024,-1000.0,0.00040576,2]
[391574368,1760670638034,-1000.0,0.00040576,2]
[391574369,1760670638043,-3325.46468183,0.0004059,3]
[391574451,1760670640054,-18574.90606547,0.0004059,3]
[391574454,1760670640065,-8012.11246368,0.0004059,7]
[391574457,1760670640074,-370000.0,0.000406,2]
[391574460,1760670640084,-171.0171326,0.000406,2]
[391574463,1760670640094,-3128.62439247,0.0004069,3]
[391574466,1760670640104,-15754.84960297,0.000407,120]
[391574470,1760670640113,-352.17644381,0.000407,120]
[391574473,1760670640123,-1130.35099616,0.00040747,64]
[391574476,1760670640132,-983.871,0.00040799,2]
[391574479,1760670640141,-634.95,0.00040799,2]
[391574482,1760670640154,-2171.371,0.00040799,2]
[391574486,1760670640164,-981.774537,0.00040917,2]
[391574489,1760670640173,-250.0,0.00040999,120]
[391574491,1760670640183,-250.0,0.00040999,120]
[391574494,1760670640192,-250.0,0.00040999,120]
[391574497,1760670640202,-250.0,0.00040999,120]
[391574500,1760670640211,-151.0,0.00040999,120]
[391574502,1760670640220,-151.0,0.00040999,120]
[391574506,1760670640230,-2624.71869958,0.00040999,7]
[391574509,1760670640239,-151.0,0.00040999,120]
[391574512,1760670640250,-250.0,0.00040999,120]
[391574515,1760670640264,-151.0,0.00040999,120]
[391574518,1760670640273,-151.0,0.00040999,120]
[391574521,1760670640282,-151.0,0.00040999,120]
[391574524,1760670640292,-250.0,0.00040999,120]
[391574527,1760670640302,-151.0,0.00040999,120]
[391574530,1760670640312,-151.0,0.00040999,120]
[391574532,1760670640322,-250.0,0.00040999,120]
[391574535,1760670640332,-151.0,0.00040999,120]
[391574538,1760670640342,-151.0,0.00040999,120]
[391574541,1760670640352,-151.0,0.00040999,120]
[391574544,1760670640361,-250.0,0.00040999,120]
[391574547,1760670640371,-151.0,0.00040999,120]
[391574549,1760670640380,-151.0,0.00040999,120]
[391574552,1760670640390,-151.37543559,0.00040999,120]
[391574557,1760670640401,-151.0,0.00040999,120]
[391574559,1760670640410,-250.0,0.00040999,120]
[391574562,1760670640420,-151.0,0.00040999,120]
[391574565,1760670640430,-151.0,0.00040999,120]
[391574568,1760670640442,-168.89990437,0.00040999,7]
[391574571,1760670640451,-151.0,0.00040999,120]
[391574574,1760670640460,-250.0,0.00040999,120]
[391574577,1760670640470,-151.0,0.00040999,120]
[391574580,1760670640480,-151.0,0.00040999,120]
[391574583,1760670640489,-17300.0,0.00040999,120]
[391574586,1760670640501,-151.0,0.00040999,120]
[391574589,1760670640510,-250.0,0.00040999,120]
[391574592,1760670640520,-151.0,0.00040999,120]
[391574595,1760670640530,-17940.1,0.00040999,120]
[391574598,1760670640539,-276.38210576,0.00040999,120]
[391574601,1760670640550,-151.0,0.00040999,120]